[Event "EIWCC 2017"]
[Site "Riga"]
[Date "2017.04.14"]
[Round "4"]
[White "Melia, Salome"]
[Black "Fuchs, Judith"]
[Result "1/2-1/2"]
[ECO "B72"]
[WhiteElo "2400"]
[BlackElo "2274"]
[Annotator "NA"]
[PlyCount "143"]
[EventDate "2017.??.??"]
[EventType "swiss"]
[EventCountry "LAT"]
[SourceTitle "playchess.com"]
[Source "ChessBase"]
[SourceQuality "1"]
[TimeControl "40/5400+30:1800+30"]

1. e4 {[%emt 0:00:00]} c5 {[%emt 0:00:09]} 2. Nf3 {[%emt 0:00:00]} d6 {[%emt 0:00:06]} 3. d4 {[%emt 0:00:00]} Nf6 {[%emt 0:00:20]} 4. Nc3 {[%emt 0:01:02]} cxd4 {[%emt 0:00:07]} 5. Nxd4 {[%emt 0:00:05]} g6 {[%emt 0:00:16]} 6. Be3 {[%emt 0:02:01]} a6 {[%emt 0:00:25]} 7. f3 {[%emt 0:01:51] B72: Sicilian Dragon: 6 Be3, lines with h3+Bc4 and sidelines} b5 {[%emt 0:00:13]} 8. Qd2 {[%emt 0:03:09]} Bb7 {[%emt 0:00:50]} 9. a4 {[%emt 0:08:24]} (9. g4 h6 10. O-O-O Nbd7 11. h4 Rc8 12. Bd3 b4 13. Nce2 e5 14. Nb3 d5 15. exd5 Nxd5 {1-0 (33) Caruana,F (2817)-Shabalov,A (2556) Saint Louis 2017}) 9... e5 {[%emt 0:00:32]} 10. Nb3 {[%emt 0:00:41]} b4 {[%emt 0:00:27]} 11. Nd5 {[%emt 0:12:05]} Nxd5 {[%emt 0:02:47]} 12. exd5 {[%emt 0:00:03]} Nd7 {[%emt 0:00:44]} 13. O-O-O {[%emt 0:13:39]} Rb8 {[%emt 0:06:20]} 14. f4 {[%emt 0:11:47]} Qc7 $146 {[%emt 0:24:33]} (14... Be7 15. fxe5 Nxe5 {1-0 (35) Kravtsiv,M (2581)-Zhou,Y (2414) Livigno 2012}) 15. Qxb4 {[%emt 0:08:14]} Bg7 {[%emt 0:07:12]} 16. Qa5 {[%emt 0:03:53]} Qc8 {[%emt 0:01:52]} 17. Qc3 {[%emt 0:04:37]} Qxc3 {[%emt 0:06:18]} 18. bxc3 {[%emt 0:00:04]} O-O {[%emt 0:00:57]} 19. Na5 {[%emt 0:02:33]} exf4 {[%emt 0:02:25]} 20. Ba7 {[%emt 0:04:12]} Bxc3 {[%emt 0:04:51]} 21. Bxb8 {[%emt 0:01:01]} Rxb8 {[%emt 0:00:26]} 22. Nxb7 {[%emt 0:07:01]} Rxb7 {[%emt 0:00:07]} 23. Bxa6 {[%emt 0:01:27]} Rb4 {[%emt 0:01:01]} 24. Bb5 {[%emt 0:04:33]} Nc5 {[%emt 0:01:14]} 25. Rdf1 {[%emt 0:05:01]} Nxa4 {[%emt 0:17:53]} 26. Bxa4 {[%emt 0:00:28]} Rxa4 {[%emt 0:00:03]} 27. Kd1 {[%emt 0:00:07]} Rd4+ {[%emt 0:04:59]} 28. Ke2 {[%emt 0:00:08]} Rxd5 {[%emt 0:03:37]} 29. Rxf4 {[%emt 0:00:53]} Rd2+ {[%emt 0:00:55]} 30. Kf3 {[%emt 0:00:19]} d5 {[%emt 0:03:21]} 31. Re1 {[%emt 0:02:40]} Kg7 {[%emt 0:06:28]} 32. Re2 {[%emt 0:00:14]} Rd1 {[%emt 0:00:17]} 33. Ra4 {[%emt 0:00:19]} Bd4 {[%emt 0:01:21]} 34. g3 {[%emt 0:03:32]} h5 {[%emt 0:01:27]} 35. h4 {[%emt 0:00:39]} Rf1+ {[%emt 0:01:41]} 36. Kg2 {[%emt 0:00:03]} Rg1+ {[%emt 0:00:07]} 37. Kh2 {[%emt 0:00:27]} Rd1 {[%emt 0:00:06]} 38. Ra3 {[%emt 0:01:08]} Bg1+ {[%emt 0:01:25]} 39. Kg2 {[%emt 0:00:12]} d4 {[%emt 0:01:12]} 40. Rf3 {[%emt 0:00:00]} Be3 {[%emt 0:00:34]} 41. Rf1 {[%emt 0:07:03]} Rxf1 {[%emt 0:09:14]} 42. Kxf1 {[%emt 0:01:52]} Kf6 {[%emt 0:03:07]} 43. Kg2 {[%emt 0:00:59]} Kf5 {[%emt 0:02:48]} 44. Kf3 {[%emt 0:00:51]} Bc1 {[%emt 0:02:42]} 45. Re4 {[%emt 0:06:11]} Bb2 {[%emt 0:00:55]} 46. Re7 {[%emt 0:00:08]} Kf6 {[%emt 0:01:34]} 47. Rb7 {[%emt 0:00:07]} Bc3 {[%emt 0:00:26]} 48. Ke4 {[%emt 0:00:17]} Ke6 {[%emt 0:00:44]} 49. Rb6+ {[%emt 0:00:33]} Ke7 {[%emt 0:00:53]} 50. Rc6 {[%emt 0:00:46]} Bb2 {[%emt 0:03:32]} 51. Rc5 {[%emt 0:03:14]} Ba1 {[%emt 0:00:27]} 52. Re5+ {[%emt 0:01:29]} Kf6 {[%emt 0:00:30]} 53. Re8 {[%emt 0:03:59]} Bb2 {[%emt 0:01:20]} 54. Kd5 {[%emt 0:01:44]} Bc3 {[%emt 0:03:09]} 55. Re4 {[%emt 0:00:08]} Bb2 {[%emt 0:01:30]} 56. Rxd4 {[%emt 0:04:34]} Bxd4 {[%emt 0:00:36]} 57. Kxd4 {[%emt 0:00:02]} Ke6 {[%emt 0:01:06]} 58. c4 {[%emt 0:02:55]} f6 {[%emt 0:02:10]} 59. Kc5 {[%emt 0:01:22]} g5 {[%emt 0:01:21]} 60. Kb6 {[%emt 0:01:06]} Kd7 {[%emt 0:00:49]} 61. c5 {[%emt 0:01:28]} gxh4 {[%emt 0:01:00]} 62. gxh4 {[%emt 0:00:12]} Kc8 {[%emt 0:00:10]} 63. Kc6 {[%emt 0:00:02]} f5 {[%emt 0:00:42]} 64. Kd5 {[%emt 0:00:05]} Kc7 {[%emt 0:00:14]} 65. Ke5 {[%emt 0:00:31]} Kc6 {[%emt 0:00:06]} 66. Kxf5 {[%emt 0:00:04]} Kxc5 {[%emt 0:00:02]} 67. Kg5 {[%emt 0:00:06]} Kd6 {[%emt 0:00:06]} 68. Kxh5 {[%emt 0:00:03]} Ke7 {[%emt 0:00:08]} 69. Kg6 {[%emt 0:00:04]} Kf8 {[%emt 0:00:04]} 70. h5 {[%emt 0:00:38]} Kg8 {[%emt 0:00:04]} 71. h6 {[%emt 0:00:07]} Kh8 {[%emt 0:00:02]} 72. h7 1/2-1/2

[Event "EIWCC 2017"]
[Site "Riga"]
[Date "2017.04.14"]
[Round "4"]
[White "Houska, Jovanka"]
[Black "Abdulla, Khayala"]
[Result "0-1"]
[ECO "D38"]
[WhiteElo "2397"]
[BlackElo "2241"]
[Annotator "NA"]
[PlyCount "127"]
[EventDate "2017.??.??"]
[EventType "swiss"]
[EventCountry "LAT"]
[SourceTitle "playchess.com"]
[Source "ChessBase"]
[SourceQuality "1"]
[TimeControl "40/5400+30:1800+30"]

1. d4 {[%emt 0:00:00]} Nf6 {[%emt 0:00:05]} 2. Nf3 {[%emt 0:00:00]} e6 {[%emt 0:00:15]} 3. c4 {[%emt 0:00:00]} d5 {[%emt 0:00:25]} 4. Nc3 {[%emt 0:00:04]} Bb4 {[%emt 0:00:20]} 5. cxd5 {[%emt 0:00:04]} Nxd5 {[%emt 0:06:48]} 6. Bd2 {[%emt 0:03:58]} O-O {[%emt 0:01:35]} 7. e4 {[%emt 0:01:50]} Nxc3 {[%emt 0:05:34]} 8. bxc3 {[%emt 0:01:17]} Be7 {[%emt 0:00:11]} 9. Bc4 {[%emt 0:05:19]} c5 {[%emt 0:02:51]} 10. O-O {[%emt 0:02:22]} Nc6 {[%emt 0:01:27]} 11. Be3 {[%emt 0:03:19]} b6 {[%emt 0:03:49]} 12. Qe2 {[%emt 0:05:07]} Bb7 {[%emt 0:06:41]} 13. Rfd1 {[%emt 0:03:45]} cxd4 {[%emt 0:01:44]} 14. cxd4 {[%emt 0:00:07]} Na5 {[%emt 0:01:34]} 15. Bd3 {[%emt 0:03:46]} Rc8 {[%emt 0:01:02]} 16. h3 {[%emt 0:13:45]} Nc6 {[%emt 0:06:11]} 17. a3 {[%emt 0:15:02]} Na5 {[%emt 0:02:17]} 18. Rdb1 {[%emt 0:13:47]} Bd6 {[%emt 0:06:37]} 19. Bd2 {[%emt 0:04:19]} Nc6 {[%emt 0:03:22]} 20. Ba6 {[%emt 0:02:21]} Bxa6 {[%emt 0:14:52]} 21. Qxa6 {[%emt 0:00:05]} Be7 {[%emt 0:00:25]} 22. Be3 {[%emt 0:02:08]} Bf6 {[%emt 0:05:52]} 23. Ra2 {[%emt 0:01:18]} Qd7 {[%emt 0:02:47]} 24. Qb5 {[%emt 0:05:28]} Rfd8 {[%emt 0:00:52]} 25. Rc2 {[%emt 0:01:33]} Qb7 {[%emt 0:05:49]} 26. Rbc1 {[%emt 0:06:55]} a6 {[%emt 0:00:55]} 27. Qh5 {[%emt 0:02:46]} Na5 {[%emt 0:05:06]} 28. Rxc8 {[%emt 0:01:28]} Rxc8 {[%emt 0:00:01]} 29. Rxc8+ {[%emt 0:00:10]} Qxc8 {[%emt 0:00:02]} 30. d5 {[%emt 0:01:38]} Nc4 {[%emt 0:02:34]} 31. Bg5 {[%emt 0:00:48]} Bb2 {[%emt 0:02:37]} 32. Bf4 {[%emt 0:00:39]} g6 {[%emt 0:03:19]} 33. Qh4 {[%emt 0:00:09]} exd5 {[%emt 0:00:40]} 34. exd5 {[%emt 0:00:24]} Qd7 {[%emt 0:01:28]} 35. Qg5 {[%emt 0:01:11]} Bxa3 {[%emt 0:01:25]} 36. h4 {[%emt 0:00:21]} Be7 {[%emt 0:00:50]} 37. Qh6 {[%emt 0:00:21]} Qxd5 {[%emt 0:01:11]} 38. Bc7 {[%emt 0:00:27]} b5 {[%emt 0:01:23]} 39. h5 {[%emt 0:00:53]} Qxh5 {[%emt 0:01:56]} 40. Qf4 {[%emt 0:00:00]} Qd5 {[%emt 0:00:33]} 41. Ne5 {[%emt 0:01:00]} Nxe5 {[%emt 0:04:14]} 42. Bxe5 {[%emt 0:00:08]} b4 {[%emt 0:03:43]} 43. g4 {[%emt 0:00:06]} b3 {[%emt 0:02:09]} 44. Bb2 {[%emt 0:00:49]} f6 {[%emt 0:05:30]} 45. Bxf6 {[%emt 0:04:18]} Qd1+ {[%emt 0:04:59]} 46. Kh2 {[%emt 0:00:10]} Bxf6 {[%emt 0:02:37]} 47. Qxf6 {[%emt 0:00:05]} Qxg4 {[%emt 0:01:09]} 48. Qxa6 {[%emt 0:00:37]} Qf4+ {[%emt 0:00:22]} 49. Kg2 {[%emt 0:00:33]} Qg4+ {[%emt 0:00:39]} 50. Kh2 {[%emt 0:00:05]} Qh5+ {[%emt 0:00:07]} 51. Kg3 {[%emt 0:01:17]} Qe5+ {[%emt 0:00:52]} 52. f4 {[%emt 0:06:40]} Qc3+ {[%emt 0:00:21]} 53. Kg4 {[%emt 0:00:20]} b2 {[%emt 0:00:36]} 54. Qa8+ {[%emt 0:00:33]} Kf7 {[%emt 0:00:26]} 55. Qd5+ {[%emt 0:07:21]} Ke7 {[%emt 0:00:09]} 56. Qe4+ {[%emt 0:00:15]} Kd6 {[%emt 0:00:11]} 57. Kg5 {[%emt 0:03:43]} Qc5+ {[%emt 0:00:51]} 58. Kh6 {[%emt 0:00:14]} Qc1 {[%emt 0:01:34]} 59. Qe5+ {[%emt 0:01:42]} Kc6 {[%emt 0:00:07]} 60. Qe6+ {[%emt 0:00:10]} Kc5 {[%emt 0:00:07]} 61. Qe5+ {[%emt 0:00:20]} Kc4 {[%emt 0:00:33]} 62. Qe4+ {[%emt 0:00:18]} Kc3 {[%emt 0:00:18]} 63. Qf3+ {[%emt 0:00:18]} Kd4 {[%emt 0:00:23]} 64. Qf2+ {[%emt 0:02:21] Ke5} 0-1

[Event "EIWCC 2017"]
[Site "Riga"]
[Date "2017.04.14"]
[Round "4"]
[White "Bulmaga, Irina"]
[Black "Drljevic, Ljilja"]
[Result "1-0"]
[ECO "B06"]
[WhiteElo "2394"]
[BlackElo "2237"]
[Annotator "NA"]
[PlyCount "77"]
[EventDate "2017.??.??"]
[EventType "swiss"]
[EventCountry "LAT"]
[SourceTitle "playchess.com"]
[Source "ChessBase"]
[SourceQuality "1"]
[TimeControl "40/5400+30:1800+30"]

1. e4 {[%emt 0:00:00]} g6 {[%emt 0:00:02]} 2. d4 {[%emt 0:00:00]} Bg7 {[%emt 0:00:06]} 3. Nc3 {[%emt 0:00:00]} d6 {[%emt 0:00:21]} 4. Be3 {[%emt 0:00:01]} a6 {[%emt 0:00:34]} 5. Qd2 {[%emt 0:00:18]} b5 {[%emt 0:00:54]} 6. f3 {[%emt 0:00:09]} Nd7 {[%emt 0:00:43]} 7. O-O-O {[%emt 0:00:29]} Bb7 {[%emt 0:00:54]} 8. h4 {[%emt 0:00:16]} h6 {[%emt 0:00:47]} 9. Nh3 {[%emt 0:00:43]} Rc8 {[%emt 0:02:26]} 10. d5 {[%emt 0:07:09]} c5 {[%emt 0:04:24]} 11. dxc6 {[%emt 0:01:01]} Rxc6 {[%emt 0:00:48]} 12. Bd4 {[%emt 0:03:51]} e5 {[%emt 0:03:10]} 13. Be3 {[%emt 0:00:50]} Ne7 {[%emt 0:10:35]} 14. g4 {[%emt 0:09:49]} Nb6 {[%emt 0:09:42]} 15. a3 {[%emt 0:05:16]} Qc8 {[%emt 0:08:55]} 16. Nf2 {[%emt 0:16:59]} h5 {[%emt 0:30:58]} 17. Kb1 {[%emt 0:02:00]} hxg4 {[%emt 0:01:29]} 18. fxg4 {[%emt 0:00:47]} Rxc3 {[%emt 0:09:44]} 19. Bxb6 {[%emt 0:01:11]} Rc6 {[%emt 0:00:51]} 20. Ba5 {[%emt 0:05:48]} g5 {[%emt 0:05:51]} 21. Qxg5 {[%emt 0:05:55]} Rxc2 {[%emt 0:03:37]} 22. Qxg7 {[%emt 0:00:47]} Rg8 {[%emt 0:00:19]} 23. Qf6 {[%emt 0:00:25]} Rxf2 {[%emt 0:01:28]} 24. Qxf2 {[%emt 0:00:08]} Bxe4+ {[%emt 0:00:17]} 25. Bd3 {[%emt 0:00:55]} Bxh1 {[%emt 0:00:27]} 26. Rxh1 {[%emt 0:00:10]} Qxg4 {[%emt 0:00:29]} 27. Qb6 {[%emt 0:01:40]} f5 {[%emt 0:02:23]} 28. Qxd6 {[%emt 0:03:41]} Qf3 {[%emt 0:01:12]} 29. Rf1 {[%emt 0:02:05]} Qh3 {[%emt 0:00:43]} 30. Bb4 {[%emt 0:01:15]} Rg7 {[%emt 0:00:44]} 31. Re1 {[%emt 0:00:45]} e4 {[%emt 0:00:30]} 32. Bc2 {[%emt 0:01:06]} Qxh4 {[%emt 0:00:32]} 33. Qb8+ {[%emt 0:02:01]} Kf7 {[%emt 0:00:07]} 34. Bb3+ {[%emt 0:00:13]} Kg6 {[%emt 0:00:21]} 35. Rg1+ {[%emt 0:00:29]} Kh7 {[%emt 0:00:30]} 36. Rxg7+ {[%emt 0:00:08]} Kxg7 {[%emt 0:00:20]} 37. Qe5+ {[%emt 0:01:09]} Kf8 {[%emt 0:00:50]} 38. Bxe7+ {[%emt 0:00:08]} Qxe7 {[%emt 0:00:10]} 39. Qh8# {[%emt 0:00:07]} 1-0

[Event "EIWCC 2017"]
[Site "Riga"]
[Date "2017.04.14"]
[Round "4"]
[White "Ziaziulkina, Nastassia"]
[Black "Toma, Katarzyna"]
[Result "1/2-1/2"]
[ECO "C41"]
[WhiteElo "2387"]
[BlackElo "2229"]
[Annotator "NA"]
[PlyCount "92"]
[EventDate "2017.??.??"]
[EventType "swiss"]
[EventCountry "LAT"]
[SourceTitle "playchess.com"]
[Source "ChessBase"]
[SourceQuality "1"]
[TimeControl "40/5400+30:1800+30"]

1. e4 {[%emt 0:00:00]} d6 {[%emt 0:00:06]} 2. d4 {[%emt 0:00:18]} Nf6 {[%emt 0:00:08]} 3. Nc3 {[%emt 0:00:27]} e5 {[%emt 0:00:11]} 4. Nf3 {[%emt 0:00:43]} Nbd7 {[%emt 0:00:12]} 5. Bc4 {[%emt 0:00:08]} Be7 {[%emt 0:00:27]} 6. O-O {[%emt 0:00:09]} O-O {[%emt 0:00:11]} 7. a4 {[%emt 0:03:30]} a5 {[%emt 0:00:23]} 8. Re1 {[%emt 0:01:17]} c6 {[%emt 0:00:17]} 9. h3 {[%emt 0:01:12]} h6 {[%emt 0:01:57]} 10. Ba2 {[%emt 0:02:00]} Qc7 {[%emt 0:00:47]} 11. Be3 {[%emt 0:00:48]} Re8 {[%emt 0:01:07]} 12. Nd2 {[%emt 0:00:42]} Nf8 {[%emt 0:10:03]} 13. Nc4 {[%emt 0:02:48]} Ra6 {[%emt 0:01:05]} 14. Qf3 {[%emt 0:11:13]} Ng6 {[%emt 0:05:48]} 15. Rad1 {[%emt 0:02:26]} Bd7 {[%emt 0:08:20]} 16. dxe5 {[%emt 0:09:23]} dxe5 {[%emt 0:02:15]} 17. Bb6 {[%emt 0:03:30]} Rxb6 {[%emt 0:13:12]} 18. Nxb6 {[%emt 0:02:07]} Qxb6 {[%emt 0:01:56]} 19. Rxd7 {[%emt 0:02:23]} Nh4 {[%emt 0:01:53]} 20. Qd3 {[%emt 0:02:19]} Nxd7 {[%emt 0:00:17]} 21. Qxd7 {[%emt 0:00:08]} Kf8 {[%emt 0:01:42]} 22. Bb3 {[%emt 0:15:16]} Rd8 {[%emt 0:03:28]} 23. Qg4 {[%emt 0:00:07]} Qc7 {[%emt 0:03:24]} 24. g3 {[%emt 0:06:59]} Ng6 {[%emt 0:00:05]} 25. Re3 {[%emt 0:00:16]} Qd7 {[%emt 0:04:49]} 26. Qe2 {[%emt 0:08:25]} Qxh3 {[%emt 0:03:55]} 27. Rf3 {[%emt 0:00:28]} Bf6 {[%emt 0:03:47]} 28. Rf5 {[%emt 0:01:37]} Rd4 {[%emt 0:12:15]} 29. Bc4 {[%emt 0:08:31]} h5 {[%emt 0:04:44]} 30. Rxh5 {[%emt 0:02:48]} Qd7 {[%emt 0:00:05]} 31. Bb3 {[%emt 0:01:01]} b6 {[%emt 0:01:53]} 32. Qf3 {[%emt 0:04:14]} Rd2 {[%emt 0:02:05]} 33. Rf5 {[%emt 0:00:18]} Qd6 {[%emt 0:03:57]} 34. Qh5 {[%emt 0:00:52]} Qd7 {[%emt 0:03:19]} 35. g4 {[%emt 0:03:52]} Nf4 {[%emt 0:02:28]} 36. Qh8+ {[%emt 0:00:10]} Ke7 {[%emt 0:00:05]} 37. g5 {[%emt 0:00:36]} Qd4 {[%emt 0:00:20]} 38. gxf6+ {[%emt 0:00:49]} Kd7 {[%emt 0:00:05]} 39. Qh4 {[%emt 0:04:21]} g5 {[%emt 0:01:04]} 40. Qg3 {[%emt 0:00:00]} Rd1+ {[%emt 0:02:43]} 41. Kh2 {[%emt 0:03:38]} Rd2 {[%emt 0:02:14]} 42. Nd1 {[%emt 0:11:59]} Rxd1 {[%emt 0:04:00]} 43. Qe3 {[%emt 0:05:59]} Rh1+ {[%emt 0:09:18]} 44. Kxh1 {[%emt 0:00:14]} Qd1+ {[%emt 0:00:06]} 45. Kh2 {[%emt 0:00:04]} Qh5+ {[%emt 0:00:12]} 46. Kg1 {[%emt 0:00:10]} Qd1+ {[%emt 0:00:37]} 1/2-1/2

[Event "EIWCC 2017"]
[Site "Riga"]
[Date "2017.04.14"]
[Round "4"]
[White "Osmanodja, Filiz"]
[Black "Vidruska, Renate"]
[Result "1/2-1/2"]
[ECO "C42"]
[WhiteElo "2370"]
[BlackElo "2093"]
[Annotator "NA"]
[PlyCount "97"]
[EventDate "2017.??.??"]
[EventType "swiss"]
[EventCountry "LAT"]
[SourceTitle "playchess.com"]
[Source "ChessBase"]
[SourceQuality "1"]
[TimeControl "40/5400+30:1800+30"]

1. e4 {[%emt 0:00:00]} e5 {[%emt 0:00:03]} 2. Nf3 {[%emt 0:00:00]} Nf6 {[%emt 0:00:05]} 3. Nxe5 {[%emt 0:00:00]} d6 {[%emt 0:00:12]} 4. Nf3 {[%emt 0:00:00]} Nxe4 {[%emt 0:00:07]} 5. Nc3 {[%emt 0:00:00]} Nxc3 {[%emt 0:00:53]} 6. dxc3 {[%emt 0:00:00]} Be7 {[%emt 0:00:41]} 7. Be3 {[%emt 0:00:00]} Nc6 {[%emt 0:01:28]} 8. Qd2 {[%emt 0:00:11]} Be6 {[%emt 0:06:26]} 9. O-O-O {[%emt 0:01:05]} Qd7 {[%emt 0:01:58]} 10. Kb1 {[%emt 0:00:59]} a6 {[%emt 0:01:51]} 11. h4 {[%emt 0:06:33]} h6 {[%emt 0:00:33]} 12. Nd4 {[%emt 0:00:50]} Nxd4 {[%emt 0:02:21]} 13. Bxd4 {[%emt 0:00:18]} O-O {[%emt 0:11:46]} 14. f3 {[%emt 0:02:19]} Qa4 {[%emt 0:05:00]} 15. b3 {[%emt 0:07:12]} Qa5 {[%emt 0:00:08]} 16. g4 {[%emt 0:14:52]} Rfe8 {[%emt 0:03:20]} 17. Kb2 {[%emt 0:07:50]} c5 {[%emt 0:18:12]} 18. Be3 {[%emt 0:03:21]} d5 {[%emt 0:00:58]} 19. Bd3 {[%emt 0:13:52]} Bf8 {[%emt 0:20:33]} 20. h5 {[%emt 0:07:22]} c4 {[%emt 0:04:53]} 21. Bf5 {[%emt 0:03:20]} d4 {[%emt 0:12:33]} 22. Bxd4 {[%emt 0:03:17]} cxb3 {[%emt 0:00:13]} 23. cxb3 {[%emt 0:03:57]} Bxf5 {[%emt 0:00:02]} 24. gxf5 {[%emt 0:00:15]} Qxf5 {[%emt 0:00:01]} 25. Rdg1 {[%emt 0:07:49]} Kh7 {[%emt 0:03:31]} 26. Rh4 {[%emt 0:05:54]} Qxf3 {[%emt 0:02:45]} 27. Rhg4 {[%emt 0:00:20]} f6 {[%emt 0:01:17]} 28. R1g2 {[%emt 0:07:39]} Rad8 {[%emt 0:00:51]} 29. R4g3 {[%emt 0:02:51]} Qf5 {[%emt 0:00:44]} 30. Rf2 {[%emt 0:01:18]} Qe4 {[%emt 0:00:51]} 31. Rd3 {[%emt 0:01:25]} Qe1 {[%emt 0:00:39]} 32. Qc2 {[%emt 0:00:14]} Kg8 {[%emt 0:00:07]} 33. Rg3 {[%emt 0:00:48]} Qe4 {[%emt 0:00:47]} 34. Bxf6 {[%emt 0:00:30]} Qxc2+ {[%emt 0:00:35]} 35. Kxc2 {[%emt 0:00:09]} Rd7 {[%emt 0:00:23]} 36. Rfg2 {[%emt 0:00:31]} Rf7 {[%emt 0:00:24]} 37. Bd4 {[%emt 0:00:41]} Re4 {[%emt 0:00:15]} 38. Rg6 {[%emt 0:00:40]} Kh7 {[%emt 0:00:18]} 39. R6g4 {[%emt 0:00:26]} Rxg4 {[%emt 0:01:08]} 40. Rxg4 {[%emt 0:00:00]} Rf5 {[%emt 0:00:06]} 41. Rh4 {[%emt 0:00:36]} g6 {[%emt 0:03:39]} 42. hxg6+ {[%emt 0:01:38]} Kxg6 {[%emt 0:01:33]} 43. Be3 {[%emt 0:08:27]} h5 {[%emt 0:04:00]} 44. Re4 {[%emt 0:00:36]} Bd6 {[%emt 0:01:57]} 45. Re6+ {[%emt 0:04:58]} Rf6 {[%emt 0:00:06]} 46. Re8 {[%emt 0:00:03]} Rf8 {[%emt 0:00:26]} 47. Re6+ {[%emt 0:02:24]} Rf6 {[%emt 0:00:06]} 48. Re8 {[%emt 0:01:26]} Rf8 {[%emt 0:00:05]} 49. Re6+ {[%emt 0:00:28]} 1/2-1/2

[Event "EIWCC 2017"]
[Site "Riga"]
[Date "2017.04.14"]
[Round "4"]
[White "Badelka, Olga"]
[Black "Gevorgyan, Maria"]
[Result "0-1"]
[ECO "E32"]
[WhiteElo "2362"]
[BlackElo "2227"]
[Annotator "NA"]
[PlyCount "86"]
[EventDate "2017.??.??"]
[EventType "swiss"]
[EventCountry "LAT"]
[SourceTitle "playchess.com"]
[Source "ChessBase"]
[SourceQuality "1"]
[TimeControl "40/5400+30:1800+30"]

1. c4 {[%emt 0:00:00]} Nf6 {[%emt 0:00:16]} 2. d4 {[%emt 0:00:00]} e6 {[%emt 0:00:05]} 3. Nc3 {[%emt 0:00:00]} Bb4 {[%emt 0:00:04]} 4. Qc2 {[%emt 0:00:00]} O-O {[%emt 0:00:12]} 5. a3 {[%emt 0:00:00]} Bxc3+ {[%emt 0:00:05]} 6. Qxc3 {[%emt 0:00:02]} b6 {[%emt 0:00:28]} 7. Bg5 {[%emt 0:00:27]} Bb7 {[%emt 0:00:12]} 8. e3 {[%emt 0:00:11]} d6 {[%emt 0:00:06]} 9. Ne2 {[%emt 0:00:38]} Nbd7 {[%emt 0:01:04]} 10. Qc2 {[%emt 0:00:33]} c5 {[%emt 0:04:36]} 11. Rd1 {[%emt 0:00:09]} Qc7 {[%emt 0:11:15]} 12. Nc3 {[%emt 0:00:33]} a6 {[%emt 0:01:17]} 13. Be2 {[%emt 0:15:13]} h6 {[%emt 0:16:10]} 14. Bh4 {[%emt 0:03:30]} cxd4 {[%emt 0:00:28]} 15. Rxd4 {[%emt 0:01:38]} Bxg2 {[%emt 0:16:56]} 16. Rg1 {[%emt 0:00:05]} Bb7 {[%emt 0:02:16]} 17. Qd1 {[%emt 0:19:15]} d5 {[%emt 0:04:41]} 18. Bg3 {[%emt 0:01:30]} Qc8 {[%emt 0:06:08]} 19. cxd5 {[%emt 0:01:10]} exd5 {[%emt 0:01:37]} 20. Rh4 {[%emt 0:04:47]} Kh8 {[%emt 0:11:22]} 21. Bf4 {[%emt 0:04:13]} Nh7 {[%emt 0:00:06]} 22. Qd4 {[%emt 0:23:22]} f6 {[%emt 0:00:24]} 23. Bd3 {[%emt 0:04:37]} Qc5 {[%emt 0:04:04]} 24. Qa4 {[%emt 0:00:06]} Rf7 {[%emt 0:00:32]} 25. Bg6 {[%emt 0:04:09]} Re7 {[%emt 0:00:21]} 26. Bxh7 {[%emt 0:00:25]} Kxh7 {[%emt 0:07:33]} 27. Qc2+ {[%emt 0:00:21]} Re4 {[%emt 0:00:31]} 28. f3 {[%emt 0:04:36]} Ne5 {[%emt 0:00:00]} 29. fxe4 {[%emt 0:05:00]} Nf3+ {[%emt 0:00:11]} 30. Kf2 {[%emt 0:00:17]} Nxh4 {[%emt 0:00:30]} 31. exd5+ {[%emt 0:01:10]} g6 {[%emt 0:00:28]} 32. Qd3 {[%emt 0:01:41]} Rd8 {[%emt 0:01:53]} 33. b4 {[%emt 0:01:48]} Qc8 {[%emt 0:04:28]} 34. e4 {[%emt 0:00:33]} g5 {[%emt 0:00:16]} 35. Bg3 {[%emt 0:02:11]} Ng6 {[%emt 0:00:01]} 36. Kg2 {[%emt 0:00:57]} h5 {[%emt 0:00:06]} 37. Kh1 {[%emt 0:00:30]} h4 {[%emt 0:00:01]} 38. Be1 {[%emt 0:00:54]} Qc7 {[%emt 0:05:35]} 39. Ne2 {[%emt 0:01:50]} Ne5 {[%emt 0:01:49]} 40. Qc3 {[%emt 0:00:00]} Qf7 {[%emt 0:00:22]} 41. Rxg5 {[%emt 0:21:43]} fxg5 {[%emt 0:00:41]} 42. Qxe5 {[%emt 0:02:19]} Qf3+ {[%emt 0:00:25]} 43. Kg1 {[%emt 0:00:06]} Rf8 {[%emt 0:00:07]} 0-1

[Event "EIWCC 2017"]
[Site "Riga"]
[Date "2017.04.14"]
[Round "4"]
[White "Mammadova, Gulnar"]
[Black "Semenova, Elena"]
[Result "1/2-1/2"]
[ECO "B40"]
[WhiteElo "2357"]
[BlackElo "2212"]
[Annotator "NA"]
[PlyCount "88"]
[EventDate "2017.??.??"]
[EventType "swiss"]
[EventCountry "LAT"]
[SourceTitle "playchess.com"]
[Source "ChessBase"]
[SourceQuality "1"]
[TimeControl "40/5400+30:1800+30"]

1. e4 {[%emt 0:00:00]} c5 {[%emt 0:00:14]} 2. Nf3 {[%emt 0:00:00]} e6 {[%emt 0:00:17]} 3. b3 {[%emt 0:00:02]} b6 {[%emt 0:00:54]} 4. Bb2 {[%emt 0:04:19]} Bb7 {[%emt 0:00:53]} 5. Qe2 {[%emt 0:00:34]} Nc6 {[%emt 0:01:23]} 6. g3 {[%emt 0:03:57]} d5 {[%emt 0:01:50]} 7. e5 {[%emt 0:02:35]} Nh6 {[%emt 0:06:43]} 8. Bg2 {[%emt 0:00:43]} Nf5 {[%emt 0:00:53]} 9. O-O {[%emt 0:00:36]} Be7 {[%emt 0:00:59]} 10. d3 {[%emt 0:02:45]} h5 {[%emt 0:11:22]} 11. Bh3 {[%emt 0:12:03]} d4 {[%emt 0:16:13]} 12. Nbd2 {[%emt 0:05:50]} g5 {[%emt 0:06:41]} 13. Bg2 {[%emt 0:05:06]} g4 {[%emt 0:01:25]} 14. Ne1 {[%emt 0:00:36]} Qc7 {[%emt 0:00:58]} 15. a4 {[%emt 0:02:46]} O-O-O {[%emt 0:08:07]} 16. Nc4 {[%emt 0:03:22]} h4 {[%emt 0:03:57]} 17. Bc1 {[%emt 0:05:09]} Nb4 {[%emt 0:02:55]} 18. Qxg4 {[%emt 0:09:29]} Bxg2 {[%emt 0:02:02]} 19. Kxg2 {[%emt 0:00:41]} Nd5 {[%emt 0:03:09]} 20. Bd2 {[%emt 0:06:01]} Rdg8 {[%emt 0:00:35]} 21. Qe4 {[%emt 0:00:36]} hxg3 {[%emt 0:08:15]} 22. fxg3 {[%emt 0:00:49]} Rh4 {[%emt 0:01:04]} 23. Qe2 {[%emt 0:03:14]} Rhg4 {[%emt 0:00:29]} 24. Kf2 {[%emt 0:07:27]} Bg5 {[%emt 0:08:20]} 25. Bxg5 {[%emt 0:04:41]} R4xg5 {[%emt 0:00:03]} 26. Nf3 {[%emt 0:01:27]} R5g7 {[%emt 0:00:25]} 27. Ke1 {[%emt 0:03:05]} a6 {[%emt 0:03:48]} 28. Kd2 {[%emt 0:03:22]} b5 {[%emt 0:02:09]} 29. axb5 {[%emt 0:00:32]} axb5 {[%emt 0:00:03]} 30. Nd6+ {[%emt 0:01:04]} Nxd6 {[%emt 0:00:50]} 31. exd6 {[%emt 0:00:05]} Qxd6 {[%emt 0:00:14]} 32. Qe5 {[%emt 0:01:27]} Qxe5 {[%emt 0:00:30]} 33. Nxe5 {[%emt 0:01:18]} f6 {[%emt 0:01:20]} 34. Nf3 {[%emt 0:05:09]} Kb7 {[%emt 0:02:03]} 35. Ra5 {[%emt 0:01:13]} Kb6 {[%emt 0:00:33]} 36. Rfa1 {[%emt 0:00:05]} Nb4 {[%emt 0:00:48]} 37. Ra8 {[%emt 0:00:44]} e5 {[%emt 0:00:54]} 38. Nh4 {[%emt 0:01:03]} Kc6 {[%emt 0:01:56]} 39. Rxg8 {[%emt 0:01:46]} Rxg8 {[%emt 0:00:03]} 40. Nf5 {[%emt 0:00:00]} Rh8 {[%emt 0:03:42]} 41. h4 {[%emt 0:01:08]} Kd5 {[%emt 0:08:00]} 42. g4 {[%emt 0:09:08]} e4 {[%emt 0:03:22]} 43. dxe4+ {[%emt 0:00:51]} Kxe4 {[%emt 0:00:05]} 44. Rf1 {[%emt 0:07:54]} Ke5 1/2-1/2